fUSD/lending_fUSD_20260516
["ID","MTS","AMOUNT","RATE_DAILY","PERIOD"]
[422383090,1778915431000,-500.0,0.00014999,2]
[422383099,1778915432000,-150.0,0.00015,2]
[422383100,1778915432000,-150.0,0.00015,2]
[422383101,1778915432000,-3631.0,0.00015,2]
[422383102,1778915432000,-51368.8711204,0.00015,2]
[422383106,1778915432000,-609.73150416,0.00015,2]
[422383103,1778915432000,-30179.46816676,0.00015,2]
[422383115,1778915437000,-323.07749584,0.00015,2]
[422383116,1778915437000,-4248362.17637737,0.00015,2]
[422383133,1778915439000,-399.225,0.00015,2]
[422383135,1778915440000,-149965.86416622,0.00015,2]
[422383134,1778915440000,-696.90129904,0.00015,2]
[422383149,1778915442000,-119375.85331458,0.00015,2]
[422383148,1778915442000,-533.0,0.00015,2]
[422383147,1778915442000,-40894.58647391,0.00015,2]
[422383158,1778915445000,-951.46598943,0.00015,2]
[422383159,1778915445000,-655.2041005,0.00015,2]
[422383157,1778915445000,-283.82629871,0.00015,2]
[422383160,1778915445000,-5123.468,0.00015,2]
[422383163,1778915445000,-1801.960852,0.00015,2]
[422383164,1778915445000,-7881.10830766,0.00015,2]
[422383162,1778915445000,-786.8175,0.00015,2]
[422383161,1778915445000,-1123.322354,0.00015,2]
[422383165,1778915446000,-5745.34472017,0.00015,2]
[422383186,1778915561000,1124.0,0.00030136,120]
[422383187,1778915719000,279.55,0.00030134,120]
[422383188,1778915771000,9959.73,0.00030137,120]
[422383193,1778915877000,719.27,8.372e-05,2]
[422383192,1778915877000,719.27,8.02e-05,2]
[422383191,1778915877000,719.27,7.668e-05,2]
[422383190,1778915877000,719.27,7.316e-05,2]
[422383189,1778915877000,719.27,6.964e-05,2]
[422383195,1778915878000,719.27,9.077e-05,2]
[422383194,1778915878000,719.27,8.724e-05,2]
[422383197,1778915878000,719.27,9.781e-05,2]
[422383196,1778915878000,719.27,9.429e-05,2]
[422383203,1778915986000,150.0,9.829e-05,2]
[422383220,1778916631000,-150.0,0.0001024,2]
[422383216,1778916631000,-719.27,0.00010133,2]
[422383217,1778916631000,-55.16421474,0.00010175,2]
[422383218,1778916631000,-107.18578526,0.00010175,2]
[422383219,1778916631000,-193.0,0.00010186,2]
[422383222,1778916631000,-193.0,0.00010407,2]
[422383221,1778916631000,-232.0,0.00010342,2]
[422383223,1778916631000,-276.35227988,0.00010407,2]
[422383225,1778916631000,-719.27,0.00010837,2]
[422383227,1778916631000,-193.0,0.00011146,2]
[422383230,1778916631000,-630.15590448,0.00011188,2]
[422383228,1778916631000,-250.0,0.00011146,2]
[422383229,1778916631000,-250.0,0.00011146,2]
[422383226,1778916631000,-250.0,0.00011146,2]
[422383231,1778916631000,-569.84409552,0.00011188,2]
[422383232,1778916631000,-19.51370774,0.00011189,2]
[422383224,1778916631000,-719.27,0.00010485,2]
[422383252,1778916632000,-2585.70014513,0.00012921,2]
[422383248,1778916632000,-1059.7,0.00012855,2]
[422383251,1778916632000,-161.16,0.000129,2]
[422383249,1778916632000,-200.0,0.00012877,2]
[422383260,1778916632000,-2127.1512353,0.00013538,2]
[422383262,1778916632000,-719.27,0.00013654,2]
[422383254,1778916632000,-150.0,0.00012923,2]
[422383246,1778916632000,-365.95,0.00012779,2]
[422383258,1778916632000,-719.27,0.00013302,2]
[422383245,1778916632000,-1000.0,0.00012762,2]
[422383234,1778916632000,-719.27,0.00011541,2]
[422383243,1778916632000,-168.82,0.00012718,2]
[422383239,1778916632000,-1680.0,0.00012307,2]
[422383236,1778916632000,-719.27,0.00011894,2]
[422383242,1778916632000,-6802.31,0.00012638,2]
[422383241,1778916632000,-719.27,0.00012598,2]
[422383237,1778916632000,-719.27,0.00012246,2]
[422383235,1778916632000,-300.0,0.00011892,2]
[422383233,1778916632000,-699.75629226,0.00011189,2]
[422383253,1778916632000,-4869.88985487,0.00012921,2]
[422383244,1778916632000,-500.0,0.00012759,2]
[422383255,1778916632000,-222.73,0.00012923,2]
[422383265,1778916632000,-500.0,0.0001371,2]
[422383257,1778916632000,-9693.61,0.00013264,2]
[422383280,1778916632000,-11571.10020747,0.0001425,2]
[422383278,1778916632000,-226.49,0.000142,2]
[422383282,1778916632000,-440.00000001,0.0001425,2]
[422383281,1778916632000,-461.33791591,0.0001425,2]
[422383279,1778916632000,-160.0,0.00014219,2]
[422383276,1778916632000,-43819.18173898,0.00014179,2]
[422383277,1778916632000,-453.26,0.000142,2]
[422383273,1778916632000,-2000.0,0.00014054,2]
[422383268,1778916632000,-212.55498381,0.00013815,21]
[422383261,1778916632000,-223.8487647,0.00013538,2]
[422383266,1778916632000,-163.0,0.0001372,2]
[422383272,1778916632000,-163.0,0.0001404,2]
[422383270,1778916632000,-250.0,0.00014,2]
[422383271,1778916632000,-255.0,0.00014022,2]
[422383267,1778916632000,-318.37,0.00013752,2]
[422383263,1778916632000,-246.07,0.00013672,2]
[422383275,1778916632000,-40269.85970806,0.00014179,2]
[422383274,1778916632000,-1000.0,0.00014149,2]
[422383264,1778916632000,-150.0,0.00013679,2]
[422383256,1778916632000,-719.27,0.0001295,2]
[422383269,1778916632000,-1490.96,0.00013888,2]
[422383288,1778916637000,-152.0,0.00014264,7]
[422383283,1778916637000,341.011599,0.0003013,120]
[422383286,1778916637000,-2011.22677961,0.0001425,2]
[422383287,1778916637000,-1441.89423309,0.0001425,2]
[422383289,1778916637000,-1110.99,0.00014623,2]
[422383290,1778916637000,-265.82266769,0.000147,2]
[422383291,1778916637000,-160.0,0.000147,2]
[422383292,1778916637000,-428.530605,0.000147,2]
[422383285,1778916637000,-2166.00530691,0.0001425,2]
[422383323,1778916638000,-684.21,0.000149,2]
[422383325,1778916638000,-1884.70579569,0.000149,2]
[422383327,1778916638000,-2204.24684653,0.000149,2]
[422383324,1778916638000,-1876.6375275,0.000149,2]
[422383326,1778916638000,-15822.94297233,0.000149,2]
[422383335,1778916638000,-500.0,0.00014989,2]
[422383329,1778916638000,-6267.01147501,0.000149,2]
[422383331,1778916638000,-680.49903705,0.000149,2]
[422383334,1778916638000,-9546.1928822,0.00014985,2]
[422383333,1778916638000,-150.0,0.00014985,2]
[422383328,1778916638000,-1235.63898972,0.000149,2]
[422383330,1778916638000,-1155.59292242,0.000149,2]
[422383336,1778916638000,-500.0,0.00014989,2]
[422383338,1778916638000,-500.0,0.00014989,2]
[422383337,1778916638000,-500.0,0.00014989,2]
[422383347,1778916638000,-500.0,0.00014999,2]
[422383318,1778916638000,-1235.63898972,0.00014899,2]
[422383344,1778916638000,-151.0,0.00014997,2]
[422383341,1778916638000,-476.99893723,0.00014989,2]
[422383345,1778916638000,-2082.01435369,0.00014999,2]
[422383339,1778916638000,-515.14926728,0.00014989,2]
[422383348,1778916638000,-500.0,0.00014999,2]
[422383340,1778916638000,-500.0,0.00014989,2]
[422383346,1778916638000,-500.0,0.00014999,2]
[422383342,1778916638000,-500.0,0.00014989,2]
[422383332,1778916638000,-163.0,0.0001496,2]
[422383316,1778916638000,-1235.63898972,0.00014899,2]
[422383349,1778916638000,-500.0,0.00014999,2]
[422383317,1778916638000,-1235.63898972,0.00014899,2]
[422383293,1778916638000,-697.061211,0.000147,2]
[422383294,1778916638000,-150.0,0.00014723,2]
[422383298,1778916638000,-2216.60915991,0.00014779,2]
[422383295,1778916638000,-150.0,0.00014723,2]
[422383297,1778916638000,-2783.40084009,0.00014779,2]
[422383296,1778916638000,-389.958299,0.00014773,2]
[422383299,1778916638000,-350.57852468,0.000148,2]
[422383300,1778916638000,-3457.03858146,0.00014824,2]
[422383302,1778916638000,-377.858139,0.00014847,2]
[422383301,1778916638000,-1542.97141854,0.00014824,2]
[422383304,1778916638000,-588.21191277,0.0001485,2]
[422383305,1778916638000,-47.13903723,0.0001485,2]
[422383315,1778916638000,-1235.63898973,0.00014899,2]
[422383303,1778916638000,-635.35095,0.0001485,2]
[422383310,1778916638000,-251.71387294,0.00014871,2]
[422383306,1778916638000,-635.35095,0.0001485,2]
[422383308,1778916638000,-921.3148453,0.00014871,2]
[422383309,1778916638000,-780.86,0.00014871,2]
[422383322,1778916638000,-67729.8198,0.000149,2]
[422383312,1778916638000,-200.0,0.0001488,2]
[422383313,1778916638000,-3292.0,0.00014892,2]
[422383321,1778916638000,-1235.63898972,0.000149,2]
[422383311,1778916638000,-1242.39477028,0.00014871,2]
[422383314,1778916638000,-500.0,0.00014899,2]
[422383320,1778916638000,-1235.63898972,0.000149,2]
[422383319,1778916638000,-1235.63898972,0.000149,2]
[422383307,1778916638000,-692.70651148,0.00014871,2]
[422383350,1778916638000,-509.75253239,0.00014999,2]
[422383343,1778916638000,-701.04,0.00014989,2]
[422383358,1778916638000,-500.0,0.00014999,2]
[422383391,1778916638000,-500.0,0.00014999,2]
[422383396,1778916638000,-500.0,0.00014999,2]
[422383397,1778916638000,-500.0,0.00014999,2]
[422383393,1778916638000,-500.0,0.00014999,2]
[422383398,1778916638000,-500.0,0.00014999,2]
[422383399,1778916638000,-500.0,0.00014999,2]
[422383394,1778916638000,-500.0,0.00014999,2]
[422383395,1778916638000,-500.0,0.00014999,2]
[422383400,1778916638000,-500.0,0.00014999,2]
[422383401,1778916638000,-500.0,0.00014999,2]
[422383402,1778916638000,-701.04,0.00014999,2]
[422383404,1778916638000,-701.04,0.00014999,2]
[422383392,1778916638000,-500.0,0.00014999,2]
[422383405,1778916638000,-701.04,0.00014999,2]
[422383407,1778916638000,-701.04,0.00014999,2]
[422383410,1778916638000,-701.04,0.00014999,2]
[422383409,1778916638000,-701.04,0.00014999,2]
[422383413,1778916638000,-701.04,0.00014999,2]
[422383406,1778916638000,-701.04,0.00014999,2]
[422383412,1778916638000,-701.04,0.00014999,2]
[422383408,1778916638000,-701.04,0.00014999,2]
[422383414,1778916638000,-701.04,0.00014999,2]
[422383416,1778916638000,-701.04,0.00014999,2]
[422383415,1778916638000,-701.04,0.00014999,2]
[422383417,1778916638000,-701.04,0.00014999,2]
[422383351,1778916638000,-500.0,0.00014999,2]
[422383403,1778916638000,-701.04,0.00014999,2]
[422383390,1778916638000,-500.0,0.00014999,2]
[422383411,1778916638000,-701.04,0.00014999,2]
[422383388,1778916638000,-500.0,0.00014999,2]
[422383387,1778916638000,-500.0,0.00014999,2]
[422383357,1778916638000,-500.0,0.00014999,2]
[422383359,1778916638000,-500.0,0.00014999,2]
[422383352,1778916638000,-504.08398651,0.00014999,2]
[422383353,1778916638000,-500.0,0.00014999,2]
[422383355,1778916638000,-500.0,0.00014999,2]
[422383356,1778916638000,-500.0,0.00014999,2]
[422383361,1778916638000,-500.0,0.00014999,2]
[422383372,1778916638000,-500.0,0.00014999,2]
[422383360,1778916638000,-500.0,0.00014999,2]
[422383374,1778916638000,-500.0,0.00014999,2]
[422383365,1778916638000,-500.0,0.00014999,2]
[422383362,1778916638000,-500.0,0.00014999,2]
[422383354,1778916638000,-500.0,0.00014999,2]
[422383364,1778916638000,-500.0,0.00014999,2]
[422383389,1778916638000,-500.0,0.00014999,2]
[422383386,1778916638000,-500.0,0.00014999,2]
[422383368,1778916638000,-500.0,0.00014999,2]
[422383385,1778916638000,-500.0,0.00014999,2]
[422383384,1778916638000,-500.0,0.00014999,2]
[422383382,1778916638000,-500.0,0.00014999,2]
[422383383,1778916638000,-500.0,0.00014999,2]
[422383380,1778916638000,-500.0,0.00014999,2]
[422383370,1778916638000,-500.0,0.00014999,2]
[422383366,1778916638000,-500.0,0.00014999,2]
[422383363,1778916638000,-500.0,0.00014999,2]
[422383376,1778916638000,-500.0,0.00014999,2]
[422383378,1778916638000,-500.0,0.00014999,2]
[422383440,1778916639000,-500.0,0.00014999,2]
[422383452,1778916639000,-500.0,0.00014999,2]
[422383442,1778916639000,-500.0,0.00014999,2]
[422383453,1778916639000,-500.0,0.00014999,2]
[422383447,1778916639000,-500.0,0.00014999,2]
[422383445,1778916639000,-500.0,0.00014999,2]
[422383443,1778916639000,-500.0,0.00014999,2]
[422383446,1778916639000,-500.0,0.00014999,2]
[422383449,1778916639000,-500.0,0.00014999,2]
[422383454,1778916639000,-500.0,0.00014999,2]
[422383450,1778916639000,-500.0,0.00014999,2]
[422383444,1778916639000,-500.0,0.00014999,2]
[422383455,1778916639000,-500.0,0.00014999,2]
[422383463,1778916639000,-500.0,0.00014999,2]
[422383456,1778916639000,-500.0,0.00014999,2]
[422383459,1778916639000,-500.0,0.00014999,2]
[422383451,1778916639000,-500.0,0.00014999,2]
[422383465,1778916639000,-500.0,0.00014999,2]
[422383448,1778916639000,-500.0,0.00014999,2]
[422383441,1778916639000,-396.86040287,0.00014999,2]
[422383422,1778916639000,-701.04,0.00014999,2]
[422383432,1778916639000,-500.0,0.00014999,2]
[422383458,1778916639000,-500.0,0.00014999,2]
[422383425,1778916639000,-500.0,0.00014999,2]
[422383424,1778916639000,-701.06461365,0.00014999,2]
[422383418,1778916639000,-701.04,0.00014999,2]
[422383427,1778916639000,-500.0,0.00014999,2]
[422383419,1778916639000,-701.04,0.00014999,2]
[422383420,1778916639000,-701.04,0.00014999,2]
[422383421,1778916639000,-701.04,0.00014999,2]
[422383423,1778916639000,-701.04,0.00014999,2]
[422383428,1778916639000,-500.0,0.00014999,2]
[422383430,1778916639000,-500.0,0.00014999,2]
[422383436,1778916639000,-500.0,0.00014999,2]
[422383433,1778916639000,-500.0,0.00014999,2]
[422383429,1778916639000,-500.0,0.00014999,2]
[422383431,1778916639000,-500.0,0.00014999,2]
[422383437,1778916639000,-500.0,0.00014999,2]
[422383434,1778916639000,-500.0,0.00014999,2]
[422383438,1778916639000,-500.0,0.00014999,2]
[422383439,1778916639000,-500.0,0.00014999,2]
[422383435,1778916639000,-500.0,0.00014999,2]
[422383464,1778916639000,-236.57632655,0.00014999,2]
[422383426,1778916639000,-457.5510128,0.00014999,2]
[422383460,1778916639000,-500.0,0.00014999,2]
[422383487,1778916639000,-500.0,0.00014999,2]
[422383488,1778916639000,-500.00000001,0.00014999,2]
[422383489,1778916639000,-300.0,0.00014999,2]
[422383490,1778916639000,-300.0,0.00014999,2]
[422383492,1778916639000,-300.0,0.00014999,2]
[422383493,1778916639000,-741.0,0.00015,5]
[422383491,1778916639000,-300.0,0.00014999,2]
[422383496,1778916639000,-150.0,0.00015,2]
[422383501,1778916639000,-273.2694314,0.00015,2]
[422383495,1778916639000,-150.0,0.00015,2]
[422383497,1778916639000,-2995591.84706736,0.00015,2]
[422383494,1778916639000,-679.0,0.00015,5]
[422383499,1778916639000,-559.105,0.00015,2]
[422383500,1778916639000,-767.11811359,0.00015,2]
[422383498,1778916639000,-1104078.68391343,0.00015,2]
[422383503,1778916639000,-9393.80034329,0.00015,2]
[422383502,1778916639000,-445.940016,0.00014773,2]
[422383504,1778916639000,-849.0,0.00015,2]
[422383505,1778916639000,-39007.32644205,0.00015,2]
[422383483,1778916639000,-500.0,0.00014999,2]
[422383478,1778916639000,-500.0,0.00014999,2]
[422383457,1778916639000,-500.0,0.00014999,2]
[422383484,1778916639000,-500.0,0.00014999,2]
[422383462,1778916639000,-500.0,0.00014999,2]
[422383461,1778916639000,-500.0,0.00014999,2]
[422383466,1778916639000,-500.0,0.00014999,2]
[422383467,1778916639000,-500.0,0.00014999,2]
[422383470,1778916639000,-500.0,0.00014999,2]
[422383472,1778916639000,-500.0,0.00014999,2]
[422383468,1778916639000,-500.0,0.00014999,2]
[422383471,1778916639000,-500.0,0.00014999,2]
[422383469,1778916639000,-500.0,0.00014999,2]
[422383473,1778916639000,-500.0,0.00014999,2]
[422383474,1778916639000,-500.0,0.00014999,2]
[422383475,1778916639000,-500.0,0.00014999,2]
[422383476,1778916639000,-500.0,0.00014999,2]
[422383477,1778916639000,-500.0,0.00014999,2]
[422383479,1778916639000,-500.0,0.00014999,2]
[422383480,1778916639000,-500.0,0.00014999,2]
[422383481,1778916639000,-500.0,0.00014999,2]
[422383482,1778916639000,-500.0,0.00014999,2]
[422383486,1778916639000,-500.0,0.00014999,2]
[422383485,1778916639000,-500.0,0.00014999,2]
[422383507,1778916640000,-1251.03423548,0.00015,2]
[422383508,1778916640000,-529.96086921,0.00015,2]
[422383509,1778916640000,-2564.52198536,0.00015,2]
[422383510,1778916640000,-652.04183587,0.00015,2]
[422383514,1778916642000,-1497.39788495,0.00015,2]
[422383512,1778916642000,-20.60426867,0.00015,2]
[422383513,1778916642000,-21990.02880757,0.00015,2]
[422383527,1778916643000,-3982.84067227,0.00015,2]
[422383526,1778916643000,-417.0,0.00015,2]
[422383528,1778916643000,-3521.68008655,0.00015,2]
[422383543,1778916644000,-250.0,0.00015,2]
[422383544,1778916644000,-242.781,0.00015,2]
[422383535,1778916644000,-150.0,0.00015,2]
[422383536,1778916644000,-595.57617731,0.00015,2]
[422383534,1778916644000,-377.90049415,0.00015,2]
[422383532,1778916644000,-200.0,0.00015,2]
[422383533,1778916644000,-150.0,0.00015,2]
[422383546,1778916644000,-150.823,0.00015,2]
[422383530,1778916644000,-1234194.06166024,0.00015,2]
[422383529,1778916644000,-682.94136611,0.00015,2]
[422383531,1778916644000,-150.0,0.00015,2]
[422383545,1778916644000,-150.974,0.00015,2]
[422383547,1778916644000,-151.0,0.00015,2]
[422383537,1778916644000,-150.0,0.00015,2]
[422383555,1778916644000,-2488.40333115,0.00015,2]
[422383538,1778916644000,-663.71786296,0.00015,2]
[422383554,1778916644000,-417.63927452,0.00015,2]
[422383551,1778916644000,-1226.85239246,0.00015,2]
[422383549,1778916644000,-230163.06682806,0.00015,2]
[422383548,1778916644000,-883.2096726,0.00015,2]
[422383553,1778916644000,-454.68174005,0.00015,2]
[422383539,1778916644000,-192.979,0.00015,2]
[422383540,1778916644000,-150.224,0.00015,2]
[422383541,1778916644000,-596.3,0.00015,2]
[422383542,1778916644000,-165.938,0.00015,2]
[422383550,1778916644000,-640543.47998894,0.00015,2]
[422383552,1778916644000,-766.24084539,0.00015,2]
[422383630,1778916646000,-2553.2852627,0.00015,2]
[422383629,1778916646000,-656.62,0.00015,2]
[422383628,1778916646000,-4580.66725332,0.00015,2]
[422383627,1778916646000,-1903.8453,0.00015,2]
[422383625,1778916646000,-33697.21727144,0.00015,2]
[422383626,1778916646000,-3904.28669122,0.00015,2]
[422383624,1778916646000,-284571.11569278,0.00015,2]
[422383622,1778916646000,-1460.0,0.00015,2]
[422383623,1778916646000,-892.1537331,0.00015,2]
[422383643,1778916691000,500.0,0.00030137,120]
[422383644,1778916700000,500.0,0.00030137,120]
[422383645,1778916722000,300.685077,0.00030136,120]
[422383646,1778916877000,200.0,0.0003,120]
[422383648,1778916902000,297.0,0.00029042,120]
[422383650,1778917035000,1000.0,0.000301,120]
[422383651,1778917064000,500.0,0.00029452,120]
[422383658,1778917601000,-248.31820516,0.00013356,2]
[422383660,1778917765000,5000.0,0.0003013,120]
[422383661,1778917775000,5000.0,0.0003013,120]
[422383662,1778917778000,5000.0,0.0003013,120]
[422383663,1778917787000,4335.0,0.0003013,120]
[422383678,1778917833000,-312.96,0.00013757,2]
[422383675,1778917833000,-235.45,0.00013637,2]
[422383676,1778917833000,-168.42,0.00013699,2]
[422383677,1778917833000,-1200.0,0.00013756,2]
[422383668,1778917833000,-251.68179484,0.00013356,2]
[422383672,1778917833000,-150.0,0.00013488,2]
[422383671,1778917833000,-150.0,0.00013488,2]
[422383669,1778917833000,-500.0,0.00013356,2]
[422383673,1778917833000,-2000.0,0.00013594,2]
[422383674,1778917833000,-166.67,0.00013594,2]
[422383679,1778917833000,-285.5,0.00013757,2]
[422383670,1778917833000,-150.0,0.00013488,2]
[422383691,1778917833000,-168.42,0.00014384,2]
[422383681,1778917833000,-150.0,0.00013787,2]
[422383692,1778917833000,-150.0,0.00014387,2]
[422383689,1778917833000,-152.0,0.00014312,7]
[422383688,1778917833000,-1100.0,0.000143,5]
[422383684,1778917833000,-1197.0,0.00014078,2]
[422383693,1778917833000,-1700.0,0.000144,5]
[422383686,1778917833000,-168.42,0.00014155,2]
[422383685,1778917833000,-150.0,0.00014087,2]
[422383687,1778917833000,-500.0,0.000142,5]
[422383683,1778917833000,-235.45,0.00013978,2]
[422383682,1778917833000,-168.42,0.00013927,2]
[422383690,1778917833000,-235.45,0.00014319,2]
[422383733,1778917834000,-501.63928122,0.00014799,2]
[422383729,1778917834000,-500.0,0.00014799,2]
[422383735,1778917834000,-500.0,0.00014799,2]
[422383726,1778917834000,-151.0,0.00014797,2]
[422383725,1778917834000,-4674.58759841,0.00014789,2]
[422383727,1778917834000,-151.0,0.00014797,2]
[422383728,1778917834000,-500.33214469,0.00014799,2]
[422383724,1778917834000,-3435.5274321,0.00014789,2]
[422383732,1778917834000,-507.39599137,0.00014799,2]
[422383721,1778917834000,-4674.58759841,0.00014767,2]
[422383730,1778917834000,-500.0,0.00014799,2]
[422383731,1778917834000,-508.38766567,0.00014799,2]
[422383736,1778917834000,-500.0,0.00014799,2]
[422383745,1778917834000,-500.0,0.00014799,2]
[422383737,1778917834000,-500.0,0.00014799,2]
[422383738,1778917834000,-500.0,0.00014799,2]
[422383739,1778917834000,-500.0,0.00014799,2]
[422383740,1778917834000,-500.0,0.00014799,2]
[422383742,1778917834000,-500.0,0.00014799,2]
[422383746,1778917834000,-500.0,0.00014799,2]
[422383744,1778917834000,-500.0,0.00014799,2]
[422383743,1778917834000,-500.0,0.00014799,2]
[422383741,1778917834000,-500.0,0.00014799,2]
[422383723,1778917834000,-219.0,0.00014773,2]
[422383734,1778917834000,-500.0,0.00014799,2]
[422383720,1778917834000,-3435.5274321,0.00014767,2]
[422383704,1778917834000,-5000.0,0.000147,2]
[422383719,1778917834000,-1244.78645993,0.00014756,2]
[422383747,1778917834000,-500.0,0.00014799,2]
[422383697,1778917834000,-166.57,0.00014611,2]
[422383694,1778917834000,-2300.0,0.000145,5]
[422383696,1778917834000,-2900.0,0.000146,5]
[422383695,1778917834000,-26154.9569,0.000146,2]
[422383698,1778917834000,-150.0,0.00014611,2]
[422383699,1778917834000,-235.45,0.0001466,2]
[422383701,1778917834000,-150.0,0.00014687,2]
[422383702,1778917834000,-250.0,0.00014692,2]
[422383700,1778917834000,-15000.0,0.00014663,2]
[422383705,1778917834000,-612.274425,0.000147,2]
[422383722,1778917834000,-1880.0,0.00014767,2]
[422383703,1778917834000,-209.49000111,0.000147,2]
[422383707,1778917834000,-3435.5274321,0.000147,2]
[422383706,1778917834000,-33179.6252,0.000147,2]
[422383711,1778917834000,-170.89645737,0.000147,5]
[422383708,1778917834000,-2000.0,0.000147,2]
[422383710,1778917834000,-329.10354263,0.000147,5]
[422383713,1778917834000,-1500.0,0.000147,2]
[422383712,1778917834000,-562.8286,0.000147,2]
[422383714,1778917834000,-5000.01,0.00014702,2]
[422383716,1778917834000,-4674.58759841,0.00014722,2]
[422383717,1778917834000,-3435.5274321,0.00014744,2]
[422383715,1778917834000,-3435.5274321,0.00014722,2]
[422383709,1778917834000,-4674.58759841,0.000147,2]
[422383748,1778917834000,-500.0,0.00014799,2]
[422383718,1778917834000,-4674.58759841,0.00014744,2]
[422383756,1778917834000,-500.0,0.00014799,2]
[422383777,1778917834000,-500.0,0.00014799,2]
[422383778,1778917834000,-500.0,0.00014799,2]
[422383782,1778917834000,-500.0,0.00014799,2]
[422383783,1778917834000,-500.0,0.00014799,2]
[422383785,1778917834000,-500.0,0.00014799,2]
[422383784,1778917834000,-500.0,0.00014799,2]
[422383781,1778917834000,-500.0,0.00014799,2]
[422383790,1778917834000,-500.0,0.00014799,2]
[422383787,1778917834000,-500.0,0.00014799,2]
[422383789,1778917834000,-562.17436259,0.00014799,2]
[422383788,1778917834000,-500.0,0.00014799,2]
[422383776,1778917834000,-500.0,0.00014799,2]
[422383786,1778917834000,-500.0,0.00014799,2]
[422383798,1778917834000,-500.0,0.00014799,2]
[422383791,1778917834000,-500.0,0.00014799,2]
[422383801,1778917834000,-500.0,0.00014799,2]
[422383795,1778917834000,-500.0,0.00014799,2]
[422383797,1778917834000,-500.0,0.00014799,2]
[422383796,1778917834000,-500.0,0.00014799,2]
[422383799,1778917834000,-500.0,0.00014799,2]
[422383794,1778917834000,-500.0,0.00014799,2]
[422383800,1778917834000,-500.0,0.00014799,2]
[422383802,1778917834000,-500.0,0.00014799,2]
[422383749,1778917834000,-500.0,0.00014799,2]
[422383792,1778917834000,-500.0,0.00014799,2]
[422383803,1778917834000,-384.54072472,0.00014799,2]
[422383793,1778917834000,-500.0,0.00014799,2]
[422383780,1778917834000,-500.0,0.00014799,2]
[422383773,1778917834000,-500.0,0.00014799,2]
[422383755,1778917834000,-500.0,0.00014799,2]
[422383754,1778917834000,-500.0,0.00014799,2]
[422383750,1778917834000,-500.0,0.00014799,2]
[422383753,1778917834000,-500.0,0.00014799,2]
[422383752,1778917834000,-500.0,0.00014799,2]
[422383757,1778917834000,-500.0,0.00014799,2]
[422383759,1778917834000,-500.0,0.00014799,2]
[422383760,1778917834000,-500.0,0.00014799,2]
[422383765,1778917834000,-500.0,0.00014799,2]
[422383763,1778917834000,-500.0,0.00014799,2]
[422383762,1778917834000,-500.0,0.00014799,2]
[422383751,1778917834000,-500.0,0.00014799,2]
[422383758,1778917834000,-500.0,0.00014799,2]
[422383761,1778917834000,-500.0,0.00014799,2]
[422383764,1778917834000,-500.0,0.00014799,2]
[422383774,1778917834000,-500.0,0.00014799,2]
[422383766,1778917834000,-500.0,0.00014799,2]
[422383767,1778917834000,-500.0,0.00014799,2]
[422383769,1778917834000,-500.0,0.00014799,2]